bitfinex-derivatives/quotes_BNBF0:USTF0_20251027
["timestamp","ask_amount","ask_price","bid_price","bid_amount"]
[1761565321906,0.14869348,1171.6,1167.6,0.61894928]
[1761565322205,2.1456881,1174.1,1167.7,1.14878724]
[1761565322408,0.14872113,1171.7,1167.8,0.52983796]
[1761565322603,2.1456881,1174.4,1167.9,0.52983796]
[1761565322808,2.1456881,1174.4,1168.0,0.52983796]
[1761565323108,0.14870301,1171.4,1167.5,0.61894928]
[1761565323308,2.1456881,1173.2,1167.6,0.52879948]
[1761565323507,0.14869857,1172.9,1167.7,0.52879948]
[1761565323703,0.14869857,1172.9,1166.9,0.61894928]
[1761565323704,0.14869857,1172.9,1167.8,0.52879948]
[1761565323906,0.14869857,1172.9,1167.0,0.61894928]
[1761565324106,0.14869857,1172.9,1167.1,0.52823809]
[1761565324407,0.14869857,1172.9,1167.2,0.52823809]
[1761565324608,0.14869857,1172.9,1167.3,0.52823809]
[1761565324808,0.14869857,1172.9,1166.1,0.61894928]
[1761565325108,0.14869857,1172.9,1166.2,0.5285132]
[1761565325306,0.14869857,1172.9,1166.1,0.61894928]
[1761565325307,0.14869857,1172.9,1166.8,0.61894928]
[1761565325507,0.14869857,1172.9,1166.9,0.5285132]
[1761565325712,0.14869857,1172.9,1167.0,0.5285132]
[1761565325905,0.14869857,1172.9,1167.1,0.5285132]
[1761565326110,0.14869857,1172.9,1167.2,0.5285132]
[1761565326306,0.14869857,1172.9,1167.3,0.5285132]
[1761565326507,0.14869857,1172.9,1166.7,0.61894928]
[1761565326711,0.14869857,1172.9,1166.8,0.52680113]
[1761565326910,0.14869857,1172.9,1166.9,0.52680113]
[1761565327206,0.14869857,1172.9,1167.0,0.52680113]
[1761565327410,0.14869857,1172.9,1166.7,0.61894928]
[1761565327411,2.1456881,1172.3,1166.7,0.61894928]
[1761565327607,2.1456881,1172.3,1166.8,0.52672293]
[1761565327805,2.1456881,1172.3,1166.9,0.52672293]
[1761565328109,3.0039634,1172.7,1166.4,0.61894928]
[1761565328308,3.0039634,1172.7,1166.5,0.52666101]
[1761565328511,2.29438667,1172.9,1166.6,0.52666101]
[1761565328806,2.29438667,1172.9,1166.3,0.61894928]
[1761565328807,2.29438667,1172.9,1166.7,0.52666101]
[1761565329109,2.1456881,1172.3,1166.3,0.61894928]
[1761565329306,2.1456881,1172.3,1166.4,0.52646554]
[1761565329509,0.14869857,1172.9,1166.5,0.52646554]
[1761565329707,0.14869857,1172.9,1166.6,0.52646554]
[1761565330008,2.1456881,1172.7,1166.7,0.52646554]
[1761565330211,2.1456881,1172.7,1166.8,0.52646554]
[1761565330412,2.1456881,1172.7,1166.3,0.61894928]
[1761565330613,2.1456881,1172.7,1166.4,0.52593631]
[1761565330807,2.1456881,1172.7,1166.5,0.52593631]
[1761565331012,2.1456881,1172.7,1166.6,0.52593631]
[1761565331209,0.14869857,1172.9,1166.7,0.52593631]
[1761565331408,0.14869857,1172.9,1166.3,0.61894928]
[1761565331609,2.1456881,1172.4,1166.4,0.52590244]
[1761565331814,2.1456881,1172.4,1166.5,0.52590244]
[1761565332010,2.1456881,1172.4,1166.6,0.52590244]
[1761565332212,3.0039634,1172.8,1166.7,0.52590244]
[1761565332411,3.0039634,1172.8,1166.2,0.61894928]
[1761565332716,0.14869857,1172.9,1166.3,0.52569244]
[1761565332912,0.14869857,1172.9,1166.2,0.61894928]
[1761565332913,0.14869857,1172.9,1166.4,0.52569244]
[1761565333113,2.1456881,1172.5,1166.5,0.52569244]
[1761565333316,2.1456881,1172.5,1166.6,0.52569244]
[1761565333515,2.1456881,1172.5,1166.7,0.5256979]
[1761565333816,0.14869857,1172.9,1166.1,0.61894928]
[1761565334115,0.14869857,1172.9,1166.2,0.52576883]
[1761565334312,2.29438667,1172.9,1166.3,0.52576883]
[1761565334512,2.29438667,1172.9,1166.4,0.52576883]
[1761565334715,0.14869857,1172.9,1165.8,0.61894928]
[1761565334914,0.14869857,1172.9,1165.9,0.52616513]
[1761565335116,0.14869857,1172.9,1166.0,0.52616513]
[1761565335311,2.1456881,1172.6,1166.1,0.52616513]
[1761565335517,2.1456881,1172.6,1166.2,0.52616513]
[1761565335717,2.1456881,1172.0,1165.7,0.61894928]
[1761565335917,2.1456881,1172.0,1165.8,0.52668745]
[1761565336117,2.1456881,1172.0,1165.9,0.52668745]
[1761565336317,3.0039634,1172.5,1166.0,0.52668745]
[1761565336618,3.0039634,1172.5,1165.1,0.61894928]
[1761565336912,3.0039634,1172.5,1165.4,0.61894928]
[1761565336913,2.1456881,1171.3,1165.4,0.61894928]
[1761565337216,2.1456881,1171.3,1165.5,0.52753215]
[1761565337417,2.1456881,1171.8,1165.6,0.52753215]
[1761565337617,2.1456881,1171.8,1165.7,0.52753215]
[1761565337918,2.1456881,1172.4,1165.8,0.52753215]
[1761565338118,2.1456881,1172.4,1165.9,0.52753215]
[1761565338314,2.1456881,1172.4,1166.0,0.52753215]
[1761565338615,2.1456881,1172.5,1165.5,0.61894928]
[1761565338818,2.1456881,1172.5,1165.6,0.52758778]
[1761565339120,2.1456881,1171.2,1165.7,1.53958778]
[1761565339419,5.1496515,1171.6,1165.7,1.012]
[1761565339814,3.0039634,1171.6,1165.7,1.012]
[1761565340014,2.1456881,1171.7,1165.8,0.52785045]
[1761565340213,2.1456881,1171.8,1165.7,1.012]
[1761565340516,2.1456881,1171.8,1165.8,0.52799994]
[1761565340814,2.1456881,1171.8,1165.7,1.012]
[1761565341017,2.1456881,1171.8,1165.8,0.52795642]
[1761565341218,2.1456881,1171.8,1165.7,1.012]
[1761565341413,2.1456881,1171.7,1165.8,0.52805386]
[1761565341714,2.1456881,1171.7,1165.9,0.52805386]
[1761565341914,2.1456881,1172.2,1165.7,1.012]
[1761565342114,2.1456881,1172.2,1165.8,0.52805975]
[1761565342318,2.1456881,1172.2,1165.9,0.52805975]
[1761565342519,2.1456881,1172.2,1166.0,0.52805975]
[1761565342718,2.1456881,1172.2,1165.7,1.012]
[1761565342919,2.1456881,1172.2,1165.8,0.5283071]
[1761565343219,2.1456881,1172.2,1165.7,1.012]
[1761565343220,2.1456881,1172.2,1165.9,0.5283071]
[1761565343419,2.1456881,1172.2,1166.0,0.5283071]
[1761565343620,2.1456881,1172.1,1166.1,0.5283071]
[1761565343816,2.1456881,1172.1,1165.7,1.012]
[1761565344020,2.1456881,1171.9,1165.8,0.52846023]
[1761565344316,2.1456881,1171.9,1165.7,1.012]
[1761565344317,2.1456881,1171.9,1165.9,0.52846023]
[1761565344519,3.0039634,1172.5,1165.7,1.012]
[1761565345121,2.29438667,1172.9,1165.7,1.012]
[1761565345621,2.1456881,1170.4,1165.7,1.012]
[1761565346018,2.1456881,1170.6,1165.7,1.012]
[1761565346721,3.0039634,1171.1,1165.7,1.012]
[1761565347218,2.1456881,1171.8,1165.7,1.012]
[1761565347721,2.1456881,1170.3,1165.7,1.012]
[1761565348320,2.1456881,1170.2,1165.7,1.012]
[1761565348718,2.1456881,1170.5,1165.7,1.012]
[1761565350024,3.0039634,1171.0,1165.7,1.012]
[1761565350222,2.1456881,1171.0,1165.7,1.012]
[1761565350825,2.1456881,1170.6,1165.7,1.012]
[1761565351322,2.1456881,1170.3,1165.7,1.012]
[1761565351823,2.1456881,1169.9,1165.7,1.012]
[1761565352425,2.1456881,1170.6,1165.7,1.012]
[1761565353427,2.1456881,1170.8,1165.7,1.012]
[1761565354031,2.1456881,1171.1,1165.7,1.012]
[1761565354429,3.0039634,1171.0,1165.7,1.012]
[1761565354627,2.1456881,1170.4,1165.7,1.012]
[1761565355228,2.1456881,1170.7,1165.7,1.012]
[1761565355432,2.1456881,1170.3,1165.7,1.012]
[1761565355932,2.1456881,1170.6,1165.7,1.012]
[1761565357234,2.1456881,1170.2,1165.7,1.012]
[1761565357733,2.1456881,1170.5,1165.7,1.012]
[1761565358234,3.0039634,1170.6,1165.7,1.012]
[1761565358431,2.1456881,1171.0,1165.7,1.012]
[1761565359132,2.1456881,1170.3,1165.7,1.012]
[1761565359733,2.1456881,1170.2,1165.7,1.012]
[1761565360337,2.1456881,1170.5,1165.7,1.012]
[1761565362539,3.0039634,1171.0,1165.7,1.012]
[1761565362738,2.1456881,1171.1,1165.7,1.012]
[1761565362941,2.1456881,1171.2,1165.7,1.012]
[1761565363438,4.2977337,1171.9,1165.7,1.012]
[1761565363842,2.1456881,1171.8,1165.7,1.012]
[1761565364036,2.1456881,1171.8,1165.8,0.53202973]
[1761565364241,2.1456881,1171.8,1165.7,1.012]
[1761565364442,2.1456881,1171.7,1165.8,0.53214297]
[1761565364739,2.1456881,1171.7,1165.7,1.012]
[1761565364941,2.1456881,1171.5,1165.8,0.53213808]
[1761565365141,2.1456881,1171.5,1165.7,1.012]
[1761565365342,2.1456881,1171.4,1165.8,0.53208852]
[1761565365542,2.1456881,1171.4,1165.7,1.012]
[1761565365842,2.1456881,1171.1,1165.7,1.012]
[1761565366139,2.1456881,1171.1,1165.8,0.53210754]
[1761565366342,2.1456881,1170.6,1165.9,0.53210754]
[1761565366543,2.1456881,1170.6,1166.0,0.53210754]
[1761565366739,2.1456881,1170.7,1166.1,0.53210754]
[1761565366950,2.1456881,1170.7,1166.2,0.53172629]
[1761565367146,2.1456881,1170.6,1165.8,0.61894928]
[1761565367350,2.1456881,1170.7,1166.0,0.61894928]
[1761565367550,2.1456881,1170.7,1166.1,0.5316964]
[1761565367849,3.0039634,1171.1,1166.2,0.5316964]
[1761565368149,3.0039634,1171.6,1166.3,0.5316964]
[1761565368351,2.1456881,1171.5,1166.3,1.15064568]
[1761565368547,2.1456881,1171.6,1166.4,1.15064568]
[1761565368850,2.1456881,1171.6,1166.5,0.5316964]
[1761565369050,2.1456881,1171.7,1166.6,0.5316964]
[1761565369248,2.1456881,1171.7,1166.7,0.5316964]
[1761565369446,2.1456881,1171.7,1166.8,0.5316964]
[1761565369650,2.1456881,1171.7,1166.9,0.5316964]
[1761565369951,2.1456881,1171.7,1166.4,0.61894928]
[1761565370144,3.0039634,1172.2,1166.2,0.86592337]
[1761565370145,2.1456881,1171.8,1166.5,1.15040717]
[1761565370346,2.1456881,1171.8,1166.6,0.53145789]
[1761565370547,2.1456881,1171.8,1166.7,0.53145789]
[1761565370749,2.1456881,1171.1,1166.3,0.61894928]
[1761565370950,2.1456881,1171.1,1166.4,0.53199476]
[1761565371150,3.0039634,1171.6,1166.4,0.53199476]
[1761565371547,3.0039634,1171.6,1166.5,1.083]
[1761565371849,4.2977337,1172.2,1166.6,0.53199476]
[1761565372048,4.2977337,1172.2,1166.7,0.53199476]
[1761565372251,4.2977337,1172.2,1166.8,0.53199476]
[1761565372548,2.1456881,1171.3,1166.9,0.53199476]
[1761565372850,2.1456881,1171.3,1166.7,0.61894928]
[1761565372851,2.1456881,1171.3,1167.0,0.53199476]
[1761565373047,2.1456881,1172.1,1167.1,0.53199476]
[1761565373252,2.1456881,1172.1,1167.2,0.53168304]
[1761565373552,2.1456881,1172.1,1166.6,0.61894928]
[1761565373553,2.1456881,1171.1,1166.6,0.61894928]
[1761565373752,2.1456881,1171.1,1166.7,0.53187715]
[1761565373951,2.1456881,1171.1,1166.8,0.53187715]
[1761565374153,3.0039634,1171.4,1166.9,0.53187715]
[1761565374353,3.0039634,1171.4,1166.5,1.083]
[1761565374553,3.0039634,1171.4,1166.6,0.5321067]
[1761565374853,2.1456881,1171.8,1166.7,0.5321067]
[1761565375052,3.0039634,1172.4,1166.5,1.083]
[1761565375053,2.1456881,1171.7,1166.8,0.5321067]
[1761565375253,2.1456881,1171.7,1166.9,0.5321067]
[1761565375453,2.1456881,1171.7,1167.0,0.5321067]
[1761565375651,2.1456881,1171.7,1166.5,1.70194928]
[1761565375949,2.1456881,1171.7,1166.6,0.53219438]
[1761565376154,2.1456881,1171.8,1166.7,0.53219438]
[1761565376449,2.1456881,1171.8,1166.5,1.70194928]
[1761565376450,2.1456881,1171.8,1166.8,0.53219438]
[1761565376650,5.1496515,1172.3,1166.9,0.53219438]
[1761565376853,2.1456881,1172.3,1167.0,0.53219438]
[1761565377052,2.1456881,1172.3,1166.5,1.083]
[1761565377353,2.1456881,1172.6,1166.6,1.15118902]
[1761565377554,2.1456881,1172.6,1166.7,0.53223974]
[1761565377851,2.1456881,1172.6,1166.8,0.53223974]
[1761565378049,2.1456881,1171.9,1167.0,0.61894928]
[1761565378252,2.1456881,1171.9,1167.1,0.53223974]
[1761565378451,2.1456881,1171.9,1167.2,0.53223974]
[1761565378751,2.1456881,1171.9,1167.3,0.53223974]
[1761565378950,2.1456881,1171.9,1167.4,0.53223974]
[1761565379254,2.1456881,1171.9,1166.9,0.61894928]
[1761565379450,2.1456881,1171.9,1167.0,1.15100414]
[1761565379651,2.1456881,1171.6,1167.1,0.53205486]
[1761565380050,2.1456881,1171.8,1167.1,0.53205486]
[1761565380653,3.0039634,1172.2,1167.2,0.53205486]
[1761565380854,3.0039634,1172.2,1167.3,0.53205486]
[1761565381051,4.2977337,1173.0,1167.4,0.53205486]
[1761565381255,4.2977337,1173.0,1167.5,0.53205486]
[1761565381453,2.1456881,1172.7,1167.6,0.53205486]
[1761565381654,2.1456881,1172.7,1167.7,0.53205486]
[1761565381858,2.1456881,1172.6,1167.1,0.61894928]
[1761565382061,2.1456881,1172.6,1167.2,0.53219745]
[1761565382258,2.1456881,1172.6,1167.3,0.53219745]
[1761565382460,2.1456881,1172.2,1167.4,0.53219745]
[1761565382660,2.1456881,1172.2,1167.5,0.53219745]
[1761565382857,2.1456881,1172.2,1167.6,0.53219745]
[1761565383062,2.1456881,1172.2,1167.1,0.61894928]
[1761565383262,2.1456881,1172.2,1167.2,0.53243683]
[1761565383462,2.1456881,1172.2,1167.3,0.53243683]
[1761565383758,2.1456881,1172.2,1167.4,0.53243683]
[1761565383958,2.1456881,1171.4,1167.5,0.53243683]
[1761565384262,2.1456881,1171.4,1167.0,0.61894928]
[1761565384458,3.0039634,1172.0,1167.1,1.15188361]
[1761565384763,3.0039634,1172.0,1166.8,0.86592337]
[1761565384764,3.0039634,1172.0,1167.2,1.15188361]
[1761565385062,3.0039634,1172.0,1167.3,0.53293433]
[1761565385262,2.1456881,1172.2,1167.4,0.53293433]
[1761565385459,2.1456881,1172.5,1167.5,0.53293433]
[1761565385659,2.1456881,1172.5,1167.6,0.53293433]
[1761565385860,2.1456881,1172.5,1167.7,0.53293433]
[1761565386062,2.1456881,1172.6,1167.1,0.61894928]
[1761565386263,2.1456881,1172.6,1167.2,0.53249812]
[1761565386460,2.1456881,1172.7,1167.3,0.53249812]
[1761565386659,2.1456881,1172.7,1167.4,0.53249812]
[1761565386859,2.1456881,1172.7,1167.5,0.53249812]
[1761565387064,2.1456881,1172.7,1167.6,0.53249812]
[1761565387261,2.1456881,1172.7,1167.7,0.53249812]
[1761565387461,2.1456881,1172.7,1167.1,0.61894928]
[1761565387664,2.1456881,1172.7,1167.2,0.53261335]
[1761565387864,2.1456881,1172.7,1167.3,0.53261335]
[1761565388066,2.1456881,1172.8,1167.4,0.53261335]
[1761565388266,2.1456881,1172.8,1167.5,0.53261335]
[1761565388462,2.1456881,1172.8,1167.6,0.53261335]
[1761565388665,2.1456881,1172.8,1166.9,0.61894928]
[1761565388966,2.1456881,1172.8,1167.0,0.5325541]
[1761565389265,2.1456881,1172.7,1167.1,0.5325541]
[1761565389466,2.1456881,1172.7,1167.2,0.5325541]
[1761565389665,2.1456881,1172.3,1167.3,0.5325541]
[1761565389961,2.1456881,1172.3,1167.0,0.61894928]
[1761565389962,2.1456881,1172.3,1167.4,0.5325541]
[1761565390166,2.1456881,1172.3,1167.5,0.5325541]
[1761565390362,2.1456881,1172.3,1167.0,0.61894928]
[1761565390565,2.1456881,1172.3,1167.1,0.53258946]
[1761565390764,2.1456881,1172.2,1167.2,0.53258946]
[1761565391061,2.1456881,1172.2,1167.3,0.53258946]
[1761565391265,3.0039634,1172.8,1166.8,0.61894928]
[1761565391266,2.1456881,1172.0,1166.8,0.61894928]
[1761565391464,2.1456881,1172.0,1166.9,0.53258962]
[1761565391661,2.1456881,1172.0,1167.0,0.53258962]
[1761565391964,2.1456881,1172.0,1167.1,0.53258962]
[1761565392162,2.1456881,1172.0,1167.2,0.53258962]
[1761565392366,2.1456881,1172.0,1167.3,0.53258962]
[1761565392662,2.1456881,1172.0,1167.4,0.53258962]
[1761565392866,2.1456881,1172.0,1166.9,0.61894928]
[1761565392867,2.1456881,1172.1,1166.9,0.61894928]
[1761565393061,2.1456881,1172.1,1167.0,1.15212707]
[1761565393262,2.1456881,1172.1,1167.1,0.53317779]
[1761565393465,2.1456881,1172.2,1167.2,0.53317779]
[1761565393661,2.1456881,1172.2,1167.3,0.53317779]
[1761565393863,2.1456881,1172.5,1167.4,0.53317779]
[1761565394067,2.1456881,1172.6,1167.5,0.53317779]
[1761565394361,2.1456881,1172.6,1167.6,0.53317779]
[1761565394562,2.1456881,1172.7,1167.7,0.53317779]
[1761565394767,2.1456881,1172.7,1167.1,0.61894928]
[1761565395062,2.1456881,1172.7,1167.2,0.53259239]
[1761565395262,2.1456881,1172.7,1167.3,0.53259239]
[1761565395462,2.1456881,1172.7,1167.4,0.53259239]
[1761565395666,2.1456881,1172.5,1167.5,0.53259239]
[1761565395965,2.1456881,1172.5,1167.6,0.53259239]
[1761565396166,2.1456881,1172.5,1167.7,0.53259239]
[1761565396364,2.1456881,1172.5,1167.1,0.61894928]
[1761565396567,2.1456881,1172.7,1167.2,0.53218124]
[1761565396867,2.1456881,1172.7,1167.1,0.61894928]
[1761565396868,2.1456881,1172.7,1167.3,0.53218124]
[1761565397166,4.2977337,1174.0,1167.4,0.53218124]
[1761565397366,4.2977337,1174.0,1167.5,0.53218124]
[1761565397567,4.2977337,1174.0,1167.6,0.53218124]
[1761565397765,4.2977337,1174.0,1167.7,0.53218124]
[1761565398064,2.1456881,1173.3,1167.8,0.53218124]
[1761565398265,2.1456881,1173.3,1167.9,0.53218124]
[1761565398471,2.1456881,1173.3,1168.0,0.53218124]
[1761565398665,2.1456881,1173.4,1168.1,0.53218124]
[1761565398964,2.1456881,1173.4,1167.4,0.61894928]
[1761565399168,2.1456881,1172.4,1167.5,0.53159699]
[1761565399368,2.1456881,1172.4,1166.8,0.61894928]
[1761565399668,2.1456881,1172.2,1166.2,0.61894928]
[1761565399869,2.1456881,1172.2,1166.4,0.61894928]
[1761565400069,2.1456881,1172.2,1166.5,0.53276636]
[1761565400366,2.1456881,1170.8,1166.5,0.53276636]
[1761565400570,2.1456881,1170.8,1166.6,0.53276636]
[1761565400770,3.0039634,1171.2,1166.7,0.53276636]
[1761565401065,3.0039634,1171.2,1166.0,0.61894928]
[1761565401271,4.2977337,1171.8,1166.1,1.15199818]
[1761565401469,4.2977337,1171.8,1166.2,0.5330489]
[1761565401669,6.4434218,1171.8,1166.3,1.15199818]
[1761565401867,6.4434218,1171.8,1166.4,1.7990489]
[1761565402066,6.4434218,1171.8,1166.5,0.5330489]
[1761565402267,2.1456881,1170.9,1166.6,0.5330489]
[1761565402469,2.1456881,1170.9,1166.4,1.266]
[1761565402669,2.1456881,1170.8,1166.5,0.5328306]
[1761565402867,2.1456881,1170.8,1166.6,0.5328306]
[1761565403072,2.1456881,1170.8,1166.4,1.266]
[1761565403275,3.0039634,1171.2,1166.5,0.53293897]
[1761565403475,3.0039634,1171.2,1166.6,0.53293897]
[1761565403674,3.0039634,1171.2,1166.4,1.266]
[1761565403876,2.1456881,1171.5,1166.4,1.266]
[1761565404276,2.1456881,1171.7,1166.4,1.266]
[1761565404880,2.1456881,1171.6,1166.4,1.266]
[1761565405379,2.1456881,1170.9,1166.4,1.266]
[1761565405878,2.1456881,1170.7,1166.4,1.266]
[1761565406975,2.1456881,1171.3,1166.4,1.266]
[1761565407378,2.1456881,1171.4,1166.5,0.53366107]
[1761565407576,2.1456881,1171.4,1166.4,1.266]
[1761565407978,2.1456881,1171.7,1166.5,0.53383117]
[1761565408280,2.1456881,1171.7,1166.6,0.53337298]
[1761565408281,2.1456881,1171.2,1166.6,0.53337298]
[1761565408480,2.1456881,1171.3,1166.7,0.53337298]
[1761565408682,2.1456881,1171.3,1166.8,0.53337298]
[1761565408878,2.1456881,1171.5,1166.9,0.53337298]
[1761565409077,2.1456881,1171.5,1166.5,0.61894928]
[1761565409381,2.1456881,1171.6,1166.6,0.533506]
[1761565409577,2.1456881,1171.6,1166.7,0.533506]
[1761565409781,2.1456881,1171.1,1166.8,0.533506]
[1761565409981,2.1456881,1172.2,1166.9,0.533506]
[1761565410281,2.1456881,1172.2,1167.0,0.533506]
[1761565410478,2.1456881,1172.3,1167.1,0.533506]
[1761565410682,2.1456881,1172.3,1167.2,0.533506]
[1761565410882,3.0039634,1172.9,1166.7,0.61894928]
[1761565410883,2.1456881,1172.4,1167.3,0.533506]
[1761565411182,0.14886268,1171.1,1166.6,0.61894928]
[1761565411383,0.14886268,1171.1,1166.7,0.53370782]
[1761565411578,0.14886268,1171.1,1166.8,0.53370782]
[1761565411780,0.14886268,1171.1,1166.9,0.53370782]
[1761565411979,0.14886268,1171.1,1167.0,0.53370782]
[1761565412183,0.14886268,1171.1,1167.1,0.53370782]
[1761565412384,0.14886268,1171.1,1167.2,0.53370782]
[1761565412680,0.14886268,1171.1,1166.7,0.61894928]
[1761565412880,0.14886268,1171.1,1166.8,0.53392604]
[1761565413082,0.14886268,1171.1,1166.9,0.53392604]
[1761565413281,0.14886268,1171.1,1167.0,0.53392604]
[1761565413485,0.14886268,1171.1,1167.1,0.53392604]
[1761565413681,0.14886268,1171.1,1167.2,0.53392604]
[1761565413885,0.14886268,1171.1,1166.7,0.61894928]
[1761565414085,0.14886268,1171.1,1166.8,0.53418063]
[1761565414285,0.14886268,1171.1,1166.9,0.53418063]
[1761565414482,0.14886268,1171.1,1166.7,0.61894928]
[1761565414483,0.14886268,1171.1,1167.0,0.53418063]
[1761565414682,0.14886268,1171.1,1167.1,0.53418063]
[1761565414881,0.14886268,1171.1,1167.2,0.53418063]
[1761565415080,0.14886268,1171.1,1167.3,0.53418063]
[1761565415385,0.14886268,1171.1,1166.8,0.61894928]
[1761565415583,0.14886268,1171.1,1166.9,0.53481469]
[1761565415784,0.14886268,1171.1,1167.0,0.53481469]
[1761565415984,0.14886268,1171.1,1167.1,0.53481469]
[1761565416182,0.14886268,1171.1,1167.2,0.53481469]
[1761565416386,0.14886268,1171.1,1167.3,0.53481469]
[1761565416685,0.14886268,1171.1,1167.4,0.53481469]
[1761565416881,0.14886268,1171.1,1167.5,0.53481469]
[1761565417185,0.14886268,1171.1,1167.2,0.61894928]
[1761565417384,0.14886268,1171.1,1167.3,0.53489233]
[1761565417581,0.14886268,1171.1,1167.4,0.53489233]
[1761565417785,0.14886268,1171.1,1167.5,0.53489233]
[1761565418085,0.14886268,1171.1,1167.1,0.61894928]
[1761565418282,0.14886268,1171.1,1166.8,0.86592337]
[1761565418283,0.14886268,1171.1,1167.2,0.5350113]
[1761565418583,0.14886268,1171.1,1167.3,0.5350113]
[1761565418783,0.14886268,1171.1,1167.4,0.5350113]
[1761565418982,0.14886268,1171.1,1167.5,0.5350113]
[1761565419183,0.14886268,1171.1,1167.6,0.5350113]
[1761565419384,0.14886268,1171.1,1167.1,0.61894928]
[1761565419581,0.14886268,1171.1,1167.2,0.53548944]
[1761565419786,0.14886268,1171.1,1167.3,0.53548944]
[1761565419984,0.14886268,1171.1,1167.4,0.53548944]
[1761565420185,0.14886268,1171.1,1167.5,0.53548944]
[1761565420382,0.14886268,1171.1,1167.6,0.53548944]
[1761565420588,0.14886268,1171.1,1167.1,0.61894928]
[1761565420784,0.14886268,1171.1,1167.2,0.535787]
[1761565420988,0.14886268,1171.1,1167.3,0.535787]
[1761565421187,0.14886268,1171.1,1167.4,0.535787]
[1761565421486,0.14886268,1171.1,1167.5,0.535787]
[1761565421685,0.14886268,1171.1,1167.6,0.535787]
[1761565421886,0.14886268,1171.1,1167.7,0.535787]
[1761565422085,0.14886268,1171.1,1167.1,0.61894928]
[1761565422389,0.14886268,1171.1,1167.2,0.53579924]
[1761565422584,0.14886268,1171.1,1167.3,0.53579924]
[1761565422787,0.14886268,1171.1,1167.4,0.53579924]
[1761565422990,0.14886268,1171.1,1167.5,0.53579924]
[1761565423190,0.14886268,1171.1,1167.6,0.53579924]
[1761565423388,0.14886268,1171.1,1167.7,0.53579924]
[1761565423587,0.14886268,1171.1,1167.1,0.61894928]
[1761565423787,0.14886268,1171.1,1167.2,0.53643595]
[1761565423987,0.14886268,1171.1,1167.3,0.53643595]
[1761565424187,0.14886268,1171.1,1167.4,0.53643595]
[1761565424389,0.14886268,1171.1,1167.5,0.53643595]
[1761565424691,0.14886268,1171.1,1167.6,0.53643595]
[1761565424987,0.14886268,1171.1,1167.7,0.53643595]
[1761565425196,0.14886268,1171.1,1167.8,0.53643595]
[1761565425392,0.14886268,1171.1,1167.9,0.53694312]
[1761565425588,0.14886268,1171.1,1167.1,0.61894928]
[1761565425893,0.14886268,1171.1,1167.2,0.5369435]
[1761565426088,0.14886268,1171.1,1167.3,0.5369435]
[1761565426287,0.14886268,1171.1,1167.4,0.5369435]
[1761565426488,0.14886268,1171.1,1167.5,0.5369435]
[1761565426691,0.14886268,1171.1,1167.6,0.5369435]
[1761565426891,0.14886268,1171.1,1167.1,0.61894928]
[1761565426892,0.14886268,1171.1,1167.7,0.5369435]
[1761565427090,0.14886268,1171.1,1167.8,0.5369435]
[1761565427292,0.14886268,1171.1,1167.9,1.5309435]
[1761565427496,0.14886268,1171.1,1167.9,0.994]
[1761565427893,2.29455078,1171.1,1167.9,0.994]
[1761565428498,0.14886268,1171.1,1167.9,0.994]
[1761565430300,2.1456881,1170.8,1167.9,0.994]
[1761565430800,2.1456881,1170.9,1167.9,0.994]
[1761565431400,0.14886268,1171.1,1167.9,0.994]
[1761565438002,0.14886268,1171.1,1168.0,0.53694294]
[1761565438306,0.14886268,1171.1,1167.9,0.994]
[1761565438607,0.14886268,1171.1,1168.0,0.53691332]
[1761565438804,0.14886268,1171.1,1167.9,0.994]
[1761565439004,0.14886268,1171.1,1168.0,0.53691313]
[1761565439300,0.14886268,1171.1,1167.9,0.994]
[1761565439504,0.14886268,1171.1,1168.0,0.53678059]
[1761565439705,0.14886268,1171.1,1167.9,0.994]
[1761565439903,0.14886268,1171.1,1168.0,0.53676688]
[1761565440101,0.14886268,1171.1,1167.9,0.994]
[1761565440305,0.14886268,1171.1,1168.0,0.53677227]
[1761565440504,0.14886268,1171.1,1167.9,0.994]
[1761565442208,2.1456881,1170.4,1167.9,0.994]
[1761565442709,3.0039634,1170.7,1167.9,0.994]
[1761565443211,2.29455078,1171.1,1167.9,0.994]
[1761565444307,0.14886268,1171.1,1166.7,0.62025004]
[1761565444509,0.14886268,1171.1,1166.8,1.15792699]
[1761565444706,0.14886268,1171.1,1166.9,0.53767695]
[1761565444907,0.14886268,1171.1,1167.0,0.53767695]
[1761565445108,0.14886268,1171.1,1167.1,0.53767695]
[1761565445307,0.14886268,1171.1,1167.2,0.53767695]
[1761565445505,0.14886268,1171.1,1167.3,0.53767695]
[1761565445712,0.14886268,1171.1,1166.7,0.62025004]
[1761565445713,0.14886268,1171.1,1167.4,0.53767695]
[1761565445913,0.14886268,1171.1,1166.7,0.62025004]
[1761565446108,0.14886268,1171.1,1166.8,0.53768303]
[1761565446308,0.14886268,1171.1,1166.9,0.53768303]
[1761565446510,0.14886268,1171.1,1167.0,0.53768303]
[1761565446712,0.14886268,1171.1,1167.1,0.53768303]
[1761565446910,2.1456881,1171.0,1167.2,0.53768303]
[1761565447109,2.1456881,1171.0,1167.3,0.53768303]
[1761565447408,2.1456881,1170.5,1166.8,0.62025004]
[1761565447610,2.1456881,1170.5,1166.9,0.53779857]
[1761565447809,2.1456881,1170.5,1167.0,0.53779857]
[1761565448009,2.1456881,1170.5,1167.1,0.53779857]
[1761565448310,2.1456881,1170.5,1167.2,1.81179857]
[1761565448509,2.1456881,1170.8,1167.3,0.53779857]
[1761565448811,2.1456881,1170.8,1167.2,1.274]
[1761565449108,2.1456881,1170.8,1167.3,0.53779148]
[1761565449315,2.1456881,1170.8,1167.2,1.274]
[1761565449610,2.1456881,1170.8,1167.3,0.53779806]
[1761565449815,2.1456881,1170.8,1167.2,1.274]
[1761565450016,2.1456881,1170.8,1167.3,0.53779787]
[1761565450317,2.1456881,1170.8,1167.2,1.274]
[1761565450513,2.1456881,1170.8,1167.3,0.53781001]
[1761565450717,2.1456881,1170.8,1167.2,1.274]
[1761565451016,2.1456881,1170.8,1167.3,0.53780982]
[1761565451210,2.1456881,1170.8,1167.2,1.274]
[1761565451415,2.1456881,1171.0,1167.3,0.53780159]
[1761565451614,2.1456881,1171.0,1167.2,1.274]
[1761565451812,2.1456881,1171.0,1167.3,0.53779936]
[1761565452011,2.1456881,1171.0,1167.2,1.274]
[1761565452313,2.1456881,1171.0,1167.3,0.53779936]
[1761565452516,2.29455078,1171.1,1167.2,1.274]
[1761565452719,2.29455078,1171.1,1167.3,0.53779171]
[1761565452918,2.29455078,1171.1,1167.2,1.274]
[1761565453618,0.14886268,1171.1,1167.2,1.274]
[1761565455519,2.1456881,1170.8,1167.2,1.274]
[1761565456020,2.1456881,1170.3,1167.2,1.274]
[1761565456516,2.1456881,1169.8,1167.2,1.274]
[1761565457217,2.1456881,1169.6,1167.2,1.274]
[1761565457614,2.1456881,1169.7,1167.2,1.274]
[1761565458321,3.0039634,1170.1,1167.2,1.274]